fUST/lending_fUST_20260228
["ID","MTS","AMOUNT","RATE_DAILY","PERIOD"]
[406857097,1772241038350,-500.0,0.00017519,2]
[406857098,1772241038364,-500.0,0.00017519,2]
[406857099,1772241038373,-500.0,0.00017519,2]
[406857100,1772241038382,-500.0,0.00017519,2]
[406857101,1772241038391,-385.74868773,0.00017519,2]
[406857102,1772241038400,-500.0,0.00017519,2]
[406857103,1772241038409,-500.0,0.00017519,2]
[406857105,1772241038418,-500.0,0.00017519,2]
[406857107,1772241038428,-298.17859381,0.00017519,2]
[406857109,1772241038437,-500.0,0.00017519,2]
[406857111,1772241038446,-500.0,0.00017519,2]
[406857113,1772241038455,-500.0,0.00017519,2]
[406857115,1772241038464,-500.0,0.00017519,2]
[406857117,1772241038474,-500.0,0.00017519,2]
[406857119,1772241038483,-500.0,0.00017519,2]
[406857121,1772241038492,-500.0,0.00017519,2]
[406857123,1772241038501,-500.0,0.00017519,2]
[406857125,1772241038511,-500.0,0.00017519,2]
[406857127,1772241038520,-500.0,0.00017519,2]
[406857129,1772241038530,-500.0,0.00017519,2]
[406857131,1772241038539,-500.0,0.00017519,2]
[406857133,1772241038548,-500.0,0.00017519,2]
[406857135,1772241038558,-500.0,0.00017519,2]
[406857137,1772241038568,-500.0,0.00017519,2]
[406857140,1772241038579,-500.0,0.00017519,2]
[406857142,1772241038592,-500.0,0.00017519,2]
[406857144,1772241038606,-500.0,0.00017519,2]
[406857146,1772241038615,-500.0,0.00017519,2]
[406857148,1772241038625,-500.0,0.00017519,2]
[406857150,1772241038638,-225.89902699,0.00017519,2]
[406857152,1772241038648,-500.0,0.00017519,2]
[406857154,1772241038657,-500.0,0.00017519,2]
[406857156,1772241038666,-500.0,0.00017519,2]
[406857158,1772241038677,-500.0,0.00017519,2]
[406857160,1772241038689,-500.0,0.00017519,2]
[406857162,1772241038700,-500.0,0.00017519,2]
[406857164,1772241038709,-500.0,0.00017519,2]
[406857166,1772241038721,-500.0,0.00017519,2]
[406857168,1772241038737,-500.0,0.00017519,2]
[406857170,1772241038746,-500.0,0.00017519,2]
[406857172,1772241038755,-500.0,0.00017519,2]
[406857174,1772241038765,-500.0,0.00017519,2]
[406857176,1772241038776,-500.0,0.00017519,2]
[406857178,1772241038786,-436.68443326,0.00017521,2]
[406857180,1772241038794,-500.0,0.00017522,2]
[406857182,1772241038804,-127885.17838948,0.00017522,2]
[406857184,1772241038815,-168.0,0.00017524,2]
[406857186,1772241038826,-168.0,0.00017542,2]
[406857188,1772241038836,-168.0,0.00017556,2]
[406857190,1772241038845,-2773.56790519,0.0001757,2]
[406857192,1772241038855,-676.723,0.00017586,2]
[406857194,1772241038864,-168.0,0.00017608,2]
[406857196,1772241038873,-168.0,0.00017661,2]
[406857197,1772241038883,-274.0,0.00017667,2]
[406857200,1772241038894,-274.0,0.00017681,2]
[406857202,1772241038904,-168.0,0.00017714,2]
[406857204,1772241038916,-800.0,0.00017727,2]
[406857206,1772241038928,-209.6695299,0.00017728,2]
[406857209,1772241038949,-800.0,0.00017746,2]
[406857211,1772241038964,-800.0,0.00017768,2]
[406857214,1772241038974,-151.0,0.00017773,2]
[406857216,1772241038985,-151.0,0.00017773,2]
[406857217,1772241038996,-151.0,0.00017773,2]
[406857220,1772241039005,-151.0,0.00017773,2]
[406857221,1772241039016,-151.0,0.00017773,2]
[406857223,1772241039029,-151.0,0.00017773,2]
[406857226,1772241039040,-151.0,0.00017773,2]
[406857228,1772241039049,-151.0,0.00017773,2]
[406857230,1772241039061,-800.0,0.00017777,2]
[406857232,1772241039071,-168.0,0.00017789,2]
[406857234,1772241039082,-800.0,0.00017795,2]
[406857236,1772241039096,-800.0,0.00017797,2]
[406857238,1772241039106,-168.0,0.000178,2]
[406857240,1772241039119,-150.0,0.00017808,2]
[406857242,1772241039130,-165.258,0.0001782,2]
[406857244,1772241039142,-800.0,0.00017836,2]
[406857246,1772241039152,-896.14339914,0.00017838,2]
[406857248,1772241039162,-151.0,0.00017838,2]
[406857250,1772241039172,-151.0,0.00017838,2]
[406857252,1772241039183,-151.0,0.00017838,2]
[406857255,1772241039196,-243.273697,0.00017838,2]
[406857257,1772241039206,-500.0,0.00017838,2]
[406857259,1772241039217,-285.68089855,0.00017838,2]
[406857288,1772241039505,-800.0,0.00017865,2]
[406857290,1772241039516,-734.49377055,0.00017865,2]
[406857292,1772241039526,-200.0,0.00017878,120]
[406857294,1772241039537,-2000.0,0.0001788,2]
[406857296,1772241039549,-342.0,0.00017887,2]
[406857298,1772241039560,-800.0,0.00017897,2]
[406857300,1772241039575,-168.0,0.00017899,2]
[406857302,1772241039584,-2343.14964565,0.000179,2]
[406857304,1772241039593,-11533.4910179,0.000179,2]
[406857306,1772241039604,-16028.44240678,0.000179,2]
[406857308,1772241039614,-6317.25771679,0.000179,2]
[406857310,1772241039625,-151.0,0.000179,2]
[406857313,1772241039635,-151.0,0.000179,2]
[406857315,1772241039645,-151.0,0.000179,2]
[406857318,1772241039656,-151.0,0.000179,2]
[406857320,1772241039665,-151.0,0.000179,2]
[406857322,1772241039674,-151.0,0.000179,2]
[406857324,1772241039683,-800.0,0.00017903,2]
[406857326,1772241039693,-800.0,0.00017908,2]
[406857328,1772241039702,-1355.0,0.00017913,2]
[406857330,1772241039711,-800.0,0.00017928,2]
[406857332,1772241039720,-168.0,0.00017945,2]
[406857334,1772241039729,-168.0,0.00017951,2]
[406857336,1772241039738,-3544.3214599,0.00017973,4]
[406857338,1772241039752,-637.0,0.00017974,2]
[406857340,1772241039762,-2180.0,0.00017974,2]
[406857343,1772241039771,-1385.0,0.00017974,2]
[406857345,1772241039781,-430.0,0.00017974,2]
[406857347,1772241039791,-728.0,0.00017974,2]
[406857349,1772241039801,-1145.53409594,0.00017979,2]
[406857351,1772241039810,-192084.90631676,0.0001798,2]
[406857353,1772241039820,-619078.47321803,0.00018,2]
[406857355,1772241039829,-137123.06531951,0.00018,2]
[406857357,1772241039839,-117198.6390778,0.00018,2]
[406857902,1772241045851,-280.03725112,0.00017509,2]
[406857903,1772241045861,-553.64373807,0.00017509,2]
[406857904,1772241045873,-290.39862941,0.00017509,2]
[406857905,1772241045882,-301.1433787,0.00017509,2]
[406857906,1772241045892,-500.0,0.00017509,2]
[406857907,1772241045901,-500.0,0.00017509,2]
[406857908,1772241045910,-500.0,0.00017509,2]
[406857909,1772241045919,-500.0,0.00017509,2]
[406857910,1772241045927,-500.0,0.00017509,2]
[406857911,1772241045937,-500.0,0.00017509,2]
[406857912,1772241045948,-500.0,0.00017519,2]
[406857913,1772241045957,-500.0,0.00017519,2]
[406857914,1772241045967,-500.0,0.00017519,2]
[406857915,1772241045976,-500.0,0.00017519,2]
[406857916,1772241045988,-500.0,0.00017519,2]
[406857917,1772241046001,-202.87766966,0.00017519,2]
[406857918,1772241046010,-500.0,0.00017519,2]
[406857919,1772241046022,-500.0,0.00017519,2]
[406857920,1772241046032,-500.0,0.00017519,2]
[406857921,1772241046042,-7097.0936029,0.00018,2]
[406857922,1772241396177,168.9333,9.212e-05,2]
[406858008,1772242007870,-298.42025008,0.00016743,2]
[406858043,1772242232862,-243.386807,0.00016611,7]
[406858044,1772242232873,-6229.900254,0.00016636,2]
[406858045,1772242232882,-336.5,0.00016743,2]
[406858046,1772242232893,-1056.57974992,0.00016743,2]
[406858047,1772242232902,-150.0,0.0001678,2]
[406858048,1772242232912,-1355.0,0.00016889,2]
[406858049,1772242232921,-150.0,0.000172,2]
[406858050,1772242232931,-168.0,0.00017201,2]
[406858051,1772242232940,-3397.9481,0.000173,2]
[406858052,1772242232950,-744.82189483,0.00017324,2]
[406858053,1772242232959,-284.0,0.00017333,2]
[406858054,1772242232969,-185.65073347,0.00017335,2]
[406858055,1772242232981,-492.99731522,0.00017335,2]
[406858066,1772242238008,-676.35195131,0.00017335,2]
[406858067,1772242238018,-160.0,0.00017417,5]
[406858070,1772242238028,-151.0,0.00017465,2]
[406858071,1772242238037,-151.0,0.00017465,2]
[406858073,1772242238048,-151.0,0.00017465,2]
[406858075,1772242238057,-151.0,0.00017465,2]
[406858077,1772242238067,-151.0,0.00017465,2]
[406858079,1772242238076,-153.43613128,0.00017465,2]
[406858081,1772242238085,-2674.60743027,0.00017465,2]
[406858083,1772242238095,-168.0,0.00017485,2]
[406858085,1772242238104,-168.0,0.00017486,2]
[406858087,1772242238113,-668.65185757,0.00017489,2]
[406858090,1772242238123,-201.93286099,0.00017489,2]
[406858093,1772242238132,-209.40437684,0.00017489,2]
[406858096,1772242238141,-217.15233878,0.00017489,2]
[406858099,1772242238151,-225.18697532,0.00017489,2]
[406858102,1772242238160,-233.51889341,0.00017489,2]
[406858105,1772242238169,-242.15909246,0.00017489,2]
[406858107,1772242238178,-251.11897888,0.00017489,2]
[406858110,1772242238187,-260.4103811,0.00017489,2]
[406858113,1772242238197,-270.0455652,0.00017489,2]
[406858116,1772242238206,-280.03725112,0.00017489,2]
[406858118,1772242238216,-527.56970476,0.00017489,2]
[406858120,1772242238225,-78.59952233,0.00017489,2]
[406858123,1772242238245,-211.79910708,0.00017489,2]
[406858124,1772242238255,-301.1433787,0.00017489,2]
[406858127,1772242238264,-161.0,0.000175,2]
[406858128,1772242238274,-731.61746232,0.000175,2]
[406858897,1772242246095,-250.0,0.00017489,2]
[406858899,1772242246105,-250.0,0.00017489,2]
[406858901,1772242246114,-250.0,0.00017489,2]
[406858903,1772242246124,-250.0,0.00017489,2]
[406858905,1772242246133,-250.0,0.00017489,2]
[406858907,1772242246142,-250.0,0.00017489,2]
[406858909,1772242246151,-250.0,0.00017489,2]
[406858911,1772242246161,-250.0,0.00017489,2]
[406858913,1772242246171,-8980.75296074,0.000175,2]
[406859005,1772243432047,-1544.0916523,0.00016745,2]
[406859006,1772243432057,-150.0,0.00016786,2]
[406859007,1772243432067,-738.74466345,0.00016955,2]
[406859008,1772243432087,-6.07723138,0.00016955,2]
[406859009,1772243432096,-2486.45878322,0.000171,2]
[406859010,1772243432106,-123.28381125,0.000171,2]
[406859011,1772243432118,-689.39149541,0.000171,2]
[406859017,1772243438196,-530.59335234,0.000171,2]
[406859018,1772243438206,-150.0,0.000171,2]
[406859019,1772243438216,-287.27066847,0.00017238,2]
[406859025,1772243440460,-23.39482952,0.00017238,2]
[406859026,1772243440469,-246.72968347,0.00017238,2]
[406859027,1772243440480,-575.03498273,0.00017238,2]
[406859032,1772243443139,-391.53494979,0.00017238,2]
[406859036,1772243446273,-800.0,0.00017238,2]
[406859037,1772243446284,-908.03749775,0.00017238,2]
[406859038,1772243446294,-220.47612503,0.00017238,2]
[406859039,1772243446304,-336.5,0.00017238,2]
[406859040,1772243446315,-327.49335319,0.00017248,2]
[406859041,1772243446338,-1333.42868471,0.00017248,2]
[406859042,1772243446348,-6178.7340259,0.00017248,2]
[406859043,1772243446357,-2999.61,0.00017499,2]
[406859044,1772243446366,-1609.69561143,0.000175,2]
[406859080,1772244081495,-150.0,0.00016,2]
[406859081,1772244081524,-150.0,0.00016474,2]
[406859082,1772244081553,-368.0,0.00016947,2]
[406859085,1772244098455,-459.99,0.00017,2]
[406859086,1772244098487,-212.15753306,0.00017225,2]
[406859087,1772244127754,-155.84246694,0.00017225,2]
[406859088,1772244127783,-368.0,0.00017318,2]
[406859170,1772244632180,-480.43172694,0.00016276,2]
[406859176,1772244632230,-6258.79798356,0.00016276,2]
[406859178,1772244632240,-947.45681167,0.0001682,2]
[406859262,1772244638411,-1361.19398303,0.0001682,2]
[406859264,1772244638421,-326.2612307,0.0001699,2]
[406859266,1772244638430,-3470.38470181,0.00017,2]
[406859268,1772244638440,-150.0,0.00017109,2]
[406859270,1772244638449,-744.82189483,0.00017163,2]
[406859272,1772244638458,-574.0,0.00017247,2]
[406859273,1772244638467,-200.0,0.00017248,3]
[406859275,1772244638477,-306.26,0.00017248,3]
[406859277,1772244638486,-150.63,0.000173,2]
[406859279,1772244638495,-1686.2829661,0.00017313,2]
[406859281,1772244638504,-300.0,0.00017316,2]
[406859283,1772244638514,-300.0,0.00017316,2]
[406859285,1772244638523,-300.0,0.00017316,2]
[406859287,1772244638533,-284.0,0.00017317,2]
[406859289,1772244638543,-200.0,0.00017318,3]
[406859291,1772244638552,-151.0,0.00017327,2]
[406859293,1772244638562,-151.0,0.00017327,2]
[406859295,1772244638571,-151.0,0.00017327,2]
[406859297,1772244638580,-2674.60743027,0.00017327,2]
[406859299,1772244638590,-306.94509175,0.00017335,2]
[406859301,1772244638599,-500.0,0.00017336,2]
[406859302,1772244638608,-500.0,0.00017336,2]
[406859304,1772244638617,-500.0,0.00017336,2]
[406859306,1772244638626,-500.0,0.00017336,2]
[406859308,1772244638635,-500.0,0.00017336,2]
[406859310,1772244638645,-500.0,0.00017336,2]
[406859312,1772244638654,-500.0,0.00017336,2]
[406859314,1772244638664,-500.0,0.00017336,2]
[406859316,1772244638673,-500.0,0.00017336,2]
[406859318,1772244638681,-500.0,0.00017336,2]
[406859320,1772244638691,-500.0,0.00017336,2]
[406859321,1772244638700,-556.61,0.00017336,2]
[406859323,1772244638710,-14711.60364925,0.00017336,2]
[406859326,1772244638725,-637.60996341,0.00017336,2]
[406859981,1772244645684,-500.0,0.00017335,2]
[406859983,1772244645693,-1227.84327972,0.00017336,2]
[406859996,1772244645807,-5052.56070153,0.00017336,2]
[406860000,1772244645843,-5028.32053247,0.00017336,2]
[406860002,1772244645854,-1275.38190145,0.00017336,2]
[406860069,1772244646682,-8610.99485752,0.00017336,2]
[406860074,1772244646717,-4801.39511465,0.00017336,2]
[406860076,1772244646727,-1675.1,0.00017336,2]
[406860078,1772244646736,-639.87,0.00017336,2]
[406860080,1772244646746,-1083.01622003,0.00017336,2]
[406860163,1772244730642,12490.0,0.000158,120]
[406860190,1772245610089,-298.42025008,0.0001412,2]
[406860240,1772245832370,-384.768375,0.00013839,2]
[406860242,1772245832381,-336.635,0.00013839,2]
[406860275,1772245838611,-313.6304184,0.00013839,2]
[406860776,1772245843713,-840.20940277,0.00013839,2]
[406861047,1772245846579,-747.66401504,0.00013839,2]
[406861049,1772245846588,-150.0,0.00013909,2]
[406861051,1772245846598,-5000.0,0.00013979,2]
[406861053,1772245846607,-284.0,0.00014998,2]
[406861055,1772245846616,-500.0,0.00014999,2]
[406861057,1772245846626,-500.0,0.00014999,2]
[406861059,1772245846636,-500.0,0.00014999,2]
[406861061,1772245846645,-223.47072718,0.00014999,2]
[406861062,1772245846654,-538.13095537,0.00014999,2]
[406861064,1772245846663,-500.0,0.00014999,2]
[406861066,1772245846673,-500.0,0.00014999,2]
[406861068,1772245846683,-500.0,0.00014999,2]
[406861070,1772245846692,-500.0,0.00014999,2]
[406861072,1772245846702,-500.0,0.00014999,2]
[406861074,1772245846711,-155.28997052,0.00014999,2]
[406861274,1772245862390,-497.51576728,0.00014849,2]
[406861276,1772246543293,329.43,0.0001,2]
[406861328,1772247031522,-434.44183182,0.00012248,2]
[406861334,1772247031576,-2423.87591658,0.00012248,2]
[406861336,1772247031586,-5000.0,0.00012372,2]
[406861338,1772247031596,-1200.0,0.00012495,2]
[406861340,1772247031605,-300.0,0.00012496,2]
[406861342,1772247031615,-300.0,0.00012496,2]
[406861344,1772247031624,-300.0,0.00012496,2]
[406861346,1772247031634,-300.0,0.00012496,2]
[406861348,1772247031643,-300.0,0.00012622,2]
[406861350,1772247031653,-150.0,0.00012686,2]
[406861352,1772247031662,-257.77552543,0.00013273,2]
[406861354,1772247031672,-196.63972248,0.00013273,2]
[406861356,1772247031681,-150.0,0.000137,2]
[406861358,1772247031691,-157.23234962,0.0001445,2]
[406861360,1772247031699,-162.87682535,0.0001445,2]
[406861362,1772247031709,-156.62363371,0.00014622,2]
[406861364,1772247031718,-193.58544939,0.00014622,2]
[406861365,1772247031728,-2487.72121207,0.00014623,2]
[406861367,1772247031738,-177.0,0.00014686,2]
[406861369,1772247031747,-500.0,0.00014723,2]
[406861371,1772247031757,-500.0,0.00014723,2]
[406861374,1772247031772,-500.0,0.00014723,2]
[406861375,1772247031781,-500.0,0.00014723,2]
[406861377,1772247031790,-500.0,0.00014723,2]
[406861379,1772247031799,-500.0,0.00014723,2]
[406861381,1772247031810,-500.0,0.00014723,2]
[406861383,1772247031819,-500.0,0.00014723,2]
[406861385,1772247031828,-500.0,0.00014723,2]
[406861387,1772247031840,-500.0,0.00014723,2]
[406861389,1772247031848,-500.0,0.00014723,2]
[406861410,1772247032038,-500.0,0.00014723,2]
[406861412,1772247032048,-500.0,0.00014723,2]
[406861414,1772247032057,-500.0,0.00014723,2]
[406861416,1772247032067,-500.0,0.00014723,2]
[406861418,1772247032076,-500.0,0.00014723,2]
[406861420,1772247032085,-500.0,0.00014723,2]
[406861422,1772247032095,-500.0,0.00014723,2]
[406861424,1772247032104,-500.0,0.00014723,2]
[406861426,1772247032113,-500.0,0.00014723,2]
[406861428,1772247032122,-500.0,0.00014723,2]
[406861430,1772247032131,-500.0,0.00014723,2]
[406861432,1772247032140,-500.0,0.00014723,2]
[406861433,1772247032150,-500.0,0.00014723,2]
[406861434,1772247032159,-500.0,0.00014723,2]
[406861435,1772247032168,-500.0,0.00014723,2]
[406861436,1772247032178,-500.0,0.00014723,2]
[406861437,1772247032187,-500.0,0.00014723,2]
[406861438,1772247032197,-500.0,0.00014723,2]
[406861439,1772247032207,-500.0,0.00014723,2]
[406861440,1772247032216,-500.0,0.00014723,2]
[406861441,1772247032226,-500.0,0.00014723,2]
[406861442,1772247032235,-500.0,0.00014723,2]
[406861443,1772247032244,-500.0,0.00014723,2]
[406861445,1772247032254,-500.0,0.00014723,2]
[406861447,1772247032263,-500.0,0.00014723,2]
[406861448,1772247032273,-500.0,0.00014723,2]
[406861449,1772247032282,-500.0,0.00014723,2]
[406861451,1772247032291,-500.0,0.00014723,2]
[406861453,1772247032301,-500.0,0.00014723,2]
[406861455,1772247032310,-500.0,0.00014723,2]
[406861456,1772247032320,-500.0,0.00014723,2]
[406861457,1772247032329,-500.0,0.00014723,2]
[406861458,1772247032338,-500.0,0.00014723,2]
[406861459,1772247032347,-500.0,0.00014723,2]
[406861460,1772247032358,-500.0,0.00014723,2]
[406861461,1772247032367,-500.0,0.00014723,2]
[406861462,1772247032376,-500.0,0.00014723,2]
[406861463,1772247032386,-500.0,0.00014723,2]
[406861464,1772247032396,-500.0,0.00014723,2]
[406861465,1772247032405,-500.0,0.00014723,2]
[406861466,1772247032415,-500.0,0.00014723,2]
[406861467,1772247032424,-500.0,0.00014723,2]
[406861468,1772247032434,-500.0,0.00014723,2]
[406861469,1772247032444,-500.0,0.00014723,2]
[406861470,1772247032454,-500.0,0.00014723,2]
[406861471,1772247032463,-500.0,0.00014723,2]
[406861472,1772247032473,-250.00000001,0.00014723,2]
[406861473,1772247032483,-624.99566388,0.00014723,2]
[406861474,1772247032493,-500.0,0.00014723,2]
[406861475,1772247032503,-500.0,0.00014723,2]
[406861476,1772247032512,-500.0,0.00014723,2]
[406861477,1772247032521,-500.0,0.00014723,2]
[406861478,1772247032530,-500.0,0.00014723,2]
[406861479,1772247032539,-500.0,0.00014723,2]
[406861480,1772247032548,-500.0,0.00014723,2]
[406861481,1772247032558,-500.0,0.00014723,2]
[406861482,1772247032567,-500.0,0.00014723,2]
[406861483,1772247032576,-500.0,0.00014723,2]
[406861484,1772247032585,-500.0,0.00014723,2]
[406861485,1772247032595,-500.0,0.00014723,2]
[406861486,1772247032604,-500.0,0.00014723,2]
[406861487,1772247032613,-500.0,0.00014723,2]
[406861488,1772247032622,-500.0,0.00014723,2]
[406861489,1772247032631,-500.0,0.00014723,2]
[406861490,1772247032641,-500.0,0.00014723,2]
[406861491,1772247032650,-500.0,0.00014723,2]
[406861492,1772247032659,-500.0,0.00014723,2]
[406861493,1772247032669,-500.0,0.00014723,2]
[406861494,1772247032678,-500.0,0.00014723,2]
[406861495,1772247032687,-500.0,0.00014723,2]
[406861496,1772247032697,-904.05933288,0.00014723,2]
[406861497,1772247032706,-500.0,0.00014723,2]
[406861498,1772247032716,-500.0,0.00014723,2]
[406861499,1772247032725,-904.05933288,0.00014723,2]
[406861500,1772247032734,-500.0,0.00014723,2]
[406861501,1772247032744,-603.43756808,0.00014723,2]
[406861502,1772247032753,-904.05933288,0.00014723,2]
[406861503,1772247032765,-500.0,0.00014723,2]
[406861504,1772247032774,-500.0,0.00014723,2]
[406861505,1772247032783,-904.05933288,0.00014723,2]
[406861506,1772247032792,-500.0,0.00014723,2]
[406861507,1772247032803,-500.0,0.00014723,2]
[406861508,1772247032812,-904.05933288,0.00014723,2]
[406861509,1772247032822,-223.14889224,0.00014723,2]
[406861510,1772247032831,-500.0,0.00014723,2]
[406861511,1772247032842,-904.05933288,0.00014723,2]
[406861512,1772247032851,-500.0,0.00014723,2]
[406861513,1772247032860,-500.0,0.00014723,2]
[406861514,1772247032869,-904.05933288,0.00014723,2]
[406861515,1772247032879,-500.0,0.00014723,2]
[406861516,1772247032888,-500.0,0.00014723,2]
[406861517,1772247032897,-904.05933288,0.00014723,2]
[406861518,1772247032906,-500.0,0.00014723,2]
[406861519,1772247032915,-904.05933288,0.00014723,2]
[406861520,1772247032924,-500.0,0.00014723,2]
[406861521,1772247032933,-904.05933288,0.00014723,2]
[406861522,1772247032943,-500.0,0.00014723,2]
[406861523,1772247032952,-904.05933288,0.00014723,2]
[406861524,1772247032961,-500.0,0.00014723,2]
[406861525,1772247032970,-904.05933288,0.00014723,2]
[406861526,1772247032979,-500.0,0.00014723,2]
[406861527,1772247032988,-500.0,0.00014723,2]
[406861528,1772247032997,-500.0,0.00014723,2]
[406861529,1772247033006,-904.05933288,0.00014723,2]
[406861530,1772247033015,-904.05933288,0.00014723,2]
[406861531,1772247033023,-500.0,0.00014723,2]
[406861532,1772247033032,-500.0,0.00014723,2]
[406861533,1772247033041,-904.05933288,0.00014723,2]
[406861534,1772247033050,-500.0,0.00014723,2]
[406861535,1772247033060,-904.05933288,0.00014723,2]
[406861536,1772247033070,-500.0,0.00014723,2]
[406861537,1772247033079,-904.05933288,0.00014723,2]
[406861538,1772247033088,-500.0,0.00014723,2]
[406861539,1772247033097,-904.05933288,0.00014723,2]
[406861540,1772247033106,-500.0,0.00014723,2]
[406861541,1772247033115,-500.0,0.00014723,2]
[406861542,1772247033125,-904.05933288,0.00014723,2]
[406861543,1772247033134,-500.0,0.00014723,2]
[406861544,1772247033143,-904.05933288,0.00014723,2]
[406861545,1772247033153,-500.0,0.00014723,2]
[406861546,1772247033163,-904.05933288,0.00014723,2]
[406861547,1772247033172,-500.0,0.00014723,2]
[406861548,1772247033181,-904.05933288,0.00014723,2]
[406861549,1772247033190,-904.05933288,0.00014723,2]
[406861550,1772247033199,-500.0,0.00014723,2]
[406861551,1772247033207,-904.05933288,0.00014723,2]
[406861552,1772247033215,-500.0,0.00014723,2]
[406861553,1772247033223,-904.05933288,0.00014723,2]
[406861554,1772247033231,-500.0,0.00014723,2]
[406861555,1772247033239,-904.05933288,0.00014723,2]
[406861556,1772247033247,-500.0,0.00014723,2]
[406861557,1772247033255,-904.05933288,0.00014723,2]
[406861558,1772247033263,-904.05933288,0.00014723,2]
[406861559,1772247033272,-500.0,0.00014723,2]
[406861560,1772247033280,-904.05933288,0.00014723,2]
[406861561,1772247033289,-500.0,0.00014723,2]
[406861562,1772247033298,-500.0,0.00014723,2]
[406861563,1772247033307,-904.05933288,0.00014723,2]
[406861564,1772247033316,-904.05933288,0.00014723,2]
[406861565,1772247033326,-500.0,0.00014723,2]
[406861566,1772247033335,-904.05933288,0.00014723,2]
[406861567,1772247033345,-904.05933288,0.00014723,2]
[406861568,1772247033354,-904.05933288,0.00014723,2]
[406861569,1772247033363,-904.05933288,0.00014723,2]
[406861570,1772247033372,-904.05933288,0.00014723,2]
[406861571,1772247033381,-904.05933288,0.00014723,2]
[406861572,1772247033391,-904.05933288,0.00014723,2]
[406861573,1772247033400,-904.05933288,0.00014723,2]
[406861574,1772247033409,-904.05933288,0.00014723,2]
[406861575,1772247033419,-904.05933288,0.00014723,2]
[406861576,1772247033427,-500.0,0.00014723,2]
[406861577,1772247033437,-500.0,0.00014723,2]
[406861578,1772247033446,-500.0,0.00014723,2]
[406861579,1772247033455,-1270.56987323,0.00014723,2]
[406861580,1772247033464,-1270.56987323,0.00014723,2]
[406861581,1772247033473,-1770.26953433,0.00014723,2]
[406861582,1772247033482,-1930.09861967,0.00014723,2]
[406861583,1772247033491,-541.25226602,0.00014724,2]
[406861584,1772247033501,-167.089,0.00014725,2]
[406861585,1772247033510,-407.77604148,0.00014999,2]
[406861586,1772247033519,-200.0,0.00014999,2]
[406861587,1772247033529,-200.0,0.00014999,2]
[406861588,1772247033538,-2874.63,0.00014999,2]
[406861589,1772247033548,-2874.63,0.00014999,2]
[406861590,1772247033556,-2874.63,0.00014999,2]
[406861591,1772247033566,-2874.63,0.00014999,2]
[406861592,1772247033575,-68262.50938512,0.00015,2]
[406861635,1772247037678,-5000.0,0.00012126,2]
[406861637,1772247037687,-9875.45061488,0.00015,2]
[406861639,1772247037696,-2487.72121204,0.0001522,2]
[406861641,1772247037705,-770.66,0.000158,2]
[406861643,1772247037714,-2487.72121204,0.00015818,2]
[406861645,1772247037723,-159.819323,0.00015996,2]
[406861646,1772247037732,-1073.2,0.00016,2]
[406861648,1772247037741,-3400.8134,0.00016,2]
[406861650,1772247037751,-2000.0,0.00016,2]
[406861652,1772247037760,-27919.05321901,0.00016115,6]
[406861655,1772247037774,-298099.42285179,0.00016115,6]
[406862331,1772247045957,-1041.66666667,0.00014723,2]
[406862332,1772247046001,-17821.78170615,0.00014723,2]
[406862333,1772247046012,-7459.205507,0.00014723,2]